[Event "Titled Tuesday Blitz April 05 Early 2022"]
[White "Sanchez, Robert"]
[Black "Rodchenkov, Sergey D."]
[WhiteFideId "2034360"]
[BlackFideId "4168712"]
[WhiteElo "2287"]
[BlackElo "2306"]
[Result "0-1"]
[Round "02"]
[TimeControl "180+1"]
[Date "2022.04.05"]
[WhiteClock "0:01:17"]
[BlackClock "0:01:22"]

1. e4 {[%clk 0:03:00]}  c5 {[%clk 0:02:59]} 2. Nf3 {[%clk 0:03:01]}  d6 {[%clk 0:03:00]} 3. d4 {[%clk 0:03:01]}  cxd4 {[%clk 0:03:01]} 4. Nxd4 {[%clk 0:03:02]}  Nf6 {[%clk 0:03:01]} 5. Nc3 {[%clk 0:03:03]}  a6 {[%clk 0:03:02]} 6. Be3 {[%clk 0:03:03]}  e5 {[%clk 0:03:02]} 7. Nb3 {[%clk 0:03:03]}  Be7 {[%clk 0:03:03]} 8. f3 {[%clk 0:03:04]}  Be6 {[%clk 0:03:03]} 9. Qd2 {[%clk 0:03:04]}  O-O {[%clk 0:03:02]} 10. O-O-O {[%clk 0:03:05]}  Nbd7 {[%clk 0:03:02]} 11. g4 {[%clk 0:03:05]}  b5 {[%clk 0:03:02]} 12. g5 {[%clk 0:03:05]}  Nh5 {[%clk 0:03:03]} 13. Nd5 {[%clk 0:03:01]}  Bxd5 {[%clk 0:03:03]} 14. exd5 {[%clk 0:03:02]}  f6 {[%clk 0:03:04]} 15. gxf6 {[%clk 0:02:51]}  Bxf6 {[%clk 0:03:05]} 16. Bh3 {[%clk 0:02:48]}  Kh8 {[%clk 0:02:50]} 17. Kb1 {[%clk 0:02:48]}  Nf4 {[%clk 0:02:44]} 18. Be6 {[%clk 0:02:30]}  Qe7 {[%clk 0:02:40]} 19. Bxf4 {[%clk 0:02:29]}  exf4 {[%clk 0:02:40]} 20. Nd4 {[%clk 0:02:22]}  g6 {[%clk 0:02:33]} 21. Rhe1 {[%clk 0:02:14]}  Nc5 {[%clk 0:02:23]} 22. Nc6 {[%clk 0:02:04]}  Qg7 {[%clk 0:02:20]} 23. c3 {[%clk 0:01:58]}  a5 {[%clk 0:02:18]} 24. Re2 {[%clk 0:01:44]}  b4 {[%clk 0:01:59]} 25. c4 {[%clk 0:01:44]}  Na4 {[%clk 0:01:51]} 26. Qc2 {[%clk 0:01:39]}  Nxb2 {[%clk 0:01:45]} 27. h4 {[%clk 0:01:26]}  Nxd1 {[%clk 0:01:43]} 28. Qxd1 {[%clk 0:01:26]}  Bxh4 {[%clk 0:01:35]} 29. Rh2 {[%clk 0:01:23]}  g5 {[%clk 0:01:31]} 30. Nd4 {[%clk 0:01:21]}  Bg3 {[%clk 0:01:25]} 31. Rh5 {[%clk 0:01:17]}  Qg6+ {[%clk 0:01:22]} 0-1


[Site "https://www.chess.com"]

[Event "Titled Tuesday Blitz April 05 Early 2022"]
[White "Sarana, Alexey"]
[Black "Shtyka, Sergey"]
[WhiteFideId "24133795"]
[BlackFideId "4138465"]
[WhiteElo "2666"]
[BlackElo "2014"]
[Result "1-0"]
[Round "02"]
[TimeControl "180+1"]
[Date "2022.04.05"]
[WhiteClock "0:01:54"]
[BlackClock "0:00:22"]

1. d4 {[%clk 0:03:00]}  c5 {[%clk 0:02:59]} 2. d5 {[%clk 0:02:49]}  e5 {[%clk 0:02:59]} 3. Nc3 {[%clk 0:02:50]}  d6 {[%clk 0:02:59]} 4. e4 {[%clk 0:02:49]}  Be7 {[%clk 0:02:59]} 5. Nf3 {[%clk 0:02:50]}  Bg4 {[%clk 0:02:59]} 6. h3 {[%clk 0:02:50]}  Bxf3 {[%clk 0:02:59]} 7. Qxf3 {[%clk 0:02:51]}  a6 {[%clk 0:02:58]} 8. a4 {[%clk 0:02:50]}  Bg5 {[%clk 0:02:58]} 9. Bxg5 {[%clk 0:02:50]}  Qxg5 {[%clk 0:02:57]} 10. Qg4 {[%clk 0:02:51]}  Qxg4 {[%clk 0:02:50]} 11. hxg4 {[%clk 0:02:52]}  Ne7 {[%clk 0:02:44]} 12. a5 {[%clk 0:02:48]}  Nd7 {[%clk 0:02:43]} 13. Na4 {[%clk 0:02:47]}  O-O-O {[%clk 0:02:32]} 14. Be2 {[%clk 0:02:43]}  h6 {[%clk 0:02:31]} 15. b3 {[%clk 0:02:40]}  Kc7 {[%clk 0:02:30]} 16. Nb2 {[%clk 0:02:38]}  Nf6 {[%clk 0:02:14]} 17. Bf3 {[%clk 0:02:37]}  g6 {[%clk 0:02:09]} 18. Nc4 {[%clk 0:02:36]}  h5 {[%clk 0:02:04]} 19. gxh5 {[%clk 0:02:34]}  Nxh5 {[%clk 0:02:04]} 20. g3 {[%clk 0:02:22]}  Nf6 {[%clk 0:01:55]} 21. Ke2 {[%clk 0:02:19]}  g5 {[%clk 0:01:52]} 22. c3 {[%clk 0:02:17]}  Ng6 {[%clk 0:01:45]} 23. Ke3 {[%clk 0:02:16]}  Rxh1 {[%clk 0:01:44]} 24. Rxh1 {[%clk 0:02:17]}  Rh8 {[%clk 0:01:44]} 25. Rc1 {[%clk 0:02:16]}  g4 {[%clk 0:01:37]} 26. Be2 {[%clk 0:02:16]}  Rh2 {[%clk 0:01:34]} 27. b4 {[%clk 0:02:16]}  Nd7 {[%clk 0:01:02]} 28. Bxg4 {[%clk 0:02:14]}  Ngf8 {[%clk 0:01:02]} 29. Rb1 {[%clk 0:02:09]}  Rh6 {[%clk 0:00:58]} 30. Bf5 {[%clk 0:01:59]}  Rh8 {[%clk 0:00:54]} 31. Rc1 {[%clk 0:01:56]}  Rh6 {[%clk 0:00:53]} 32. Nb2 {[%clk 0:01:56]}  Rh8 {[%clk 0:00:36]} 33. Na4 {[%clk 0:01:55]}  cxb4 {[%clk 0:00:35]} 34. cxb4+ {[%clk 0:01:55]}  Kb8 {[%clk 0:00:36]} 35. Nb2 {[%clk 0:01:55]}  Rh6 {[%clk 0:00:27]} 36. Nc4 {[%clk 0:01:55]}  Rf6 {[%clk 0:00:27]} 37. Nb6 {[%clk 0:01:54]}  Nxb6 {[%clk 0:00:24]} 38. axb6 {[%clk 0:01:55]}  Ne6 {[%clk 0:00:21]} 39. dxe6 {[%clk 0:01:54]}  fxe6 {[%clk 0:00:22]} 40. Bg4 {[%clk 0:01:54]} 1-0


[Site "https://www.chess.com"]

[Event "Titled Tuesday Blitz April 05 Early 2022"]
[White "Sellitti, Federico"]
[Black "Salinas Herrera, Pablo"]
[WhiteFideId "821829"]
[BlackFideId "3407128"]
[WhiteElo "2558"]
[BlackElo "2541"]
[Result "0-1"]
[Round "02"]
[TimeControl "180+1"]
[Date "2022.04.05"]
[WhiteClock "0:00:04"]
[BlackClock "0:02:07"]

1. e4 {[%clk 0:01:52]}  c5 {[%clk 0:02:59]} 2. Nc3 {[%clk 0:01:52]}  e6 {[%clk 0:02:58]} 3. g3 {[%clk 0:01:53]}  a6 {[%clk 0:02:58]} 4. Bg2 {[%clk 0:01:53]}  Nc6 {[%clk 0:02:58]} 5. d3 {[%clk 0:01:54]}  g6 {[%clk 0:02:58]} 6. f4 {[%clk 0:01:55]}  Bg7 {[%clk 0:02:59]} 7. Nf3 {[%clk 0:01:55]}  Nge7 {[%clk 0:02:59]} 8. O-O {[%clk 0:01:56]}  d6 {[%clk 0:03:00]} 9. Be3 {[%clk 0:01:55]}  Nd4 {[%clk 0:02:59]} 10. Qd2 {[%clk 0:01:52]}  b5 {[%clk 0:02:59]} 11. Nd1 {[%clk 0:01:47]}  Bb7 {[%clk 0:02:59]} 12. c3 {[%clk 0:01:45]}  Nxf3+ {[%clk 0:02:59]} 13. Bxf3 {[%clk 0:01:46]}  O-O {[%clk 0:03:00]} 14. Bg2 {[%clk 0:01:39]}  a5 {[%clk 0:03:00]} 15. Nf2 {[%clk 0:01:38]}  b4 {[%clk 0:03:00]} 16. Nh3 {[%clk 0:01:19]}  Qd7 {[%clk 0:02:56]} 17. g4 {[%clk 0:01:08]}  f5 {[%clk 0:02:56]} 18. gxf5 {[%clk 0:01:07]}  gxf5 {[%clk 0:02:56]} 19. Ng5 {[%clk 0:00:58]}  h6 {[%clk 0:02:53]} 20. Nh3 {[%clk 0:00:51]}  Rf6 {[%clk 0:02:53]} 21. Kh1 {[%clk 0:00:51]}  Rg6 {[%clk 0:02:53]} 22. Rg1 {[%clk 0:00:51]}  bxc3 {[%clk 0:02:43]} 23. bxc3 {[%clk 0:00:50]}  c4 {[%clk 0:02:44]} 24. e5 {[%clk 0:00:29]}  Rxg2 {[%clk 0:02:41]} 25. Rxg2 {[%clk 0:00:29]}  dxe5 {[%clk 0:02:41]} 26. Kg1 {[%clk 0:00:20]}  Bxg2 {[%clk 0:02:39]} 27. Qxg2 {[%clk 0:00:20]}  Qd5 {[%clk 0:02:27]} 28. fxe5 {[%clk 0:00:10]}  Qxg2+ {[%clk 0:02:26]} 29. Kxg2 {[%clk 0:00:11]}  cxd3 {[%clk 0:02:26]} 30. Bd4 {[%clk 0:00:08]}  Kf7 {[%clk 0:02:23]} 31. Nf4 {[%clk 0:00:09]}  Rc8 {[%clk 0:02:08]} 32. Nxd3 {[%clk 0:00:06]}  Nd5 {[%clk 0:02:09]} 33. Rc1 {[%clk 0:00:05]}  h5 {[%clk 0:02:08]} 34. Kf3 {[%clk 0:00:05]}  Bh6 {[%clk 0:02:09]} 35. Rc2 {[%clk 0:00:05]}  Rc4 {[%clk 0:02:08]} 36. Rb2 {[%clk 0:00:03]}  Nxc3 {[%clk 0:02:07]} 37. Rb7+ {[%clk 0:00:04]}  Kg6 {[%clk 0:02:07]} 38. Bxc3 {[%clk 0:00:02]}  Rxc3 {[%clk 0:02:08]} 39. Ke2 {[%clk 0:00:03]}  Rc2+ {[%clk 0:02:08]} 40. Kf3 {[%clk 0:00:04]}  Rxh2 {[%clk 0:02:07]} 41. Rb6 {[%clk 0:00:03]}  Rh3+ {[%clk 0:02:08]} 42. Ke2 {[%clk 0:00:03]}  Re3+ {[%clk 0:02:08]} 43. Kd2 {[%clk 0:00:03]}  Rxe5+ {[%clk 0:02:08]} 44. Kc2 {[%clk 0:00:04]}  Re4 {[%clk 0:02:07]} 45. Nc5 {[%clk 0:00:04]}  Rc4+ {[%clk 0:02:07]} 0-1


[Site "https://www.chess.com"]

[Event "Titled Tuesday Blitz April 05 Early 2022"]
[White "Shahaliyev, Ismayil"]
[Black "Hartikainen, Jarmo"]
[WhiteFideId "13406388"]
[BlackFideId "503134"]
[WhiteElo "2105"]
[BlackElo "2085"]
[Result "1-0"]
[Round "02"]
[TimeControl "180+1"]
[Date "2022.04.05"]
[WhiteClock "0:01:48"]
[BlackClock "0:00:23"]

1. d4 {[%clk 0:03:00]}  Nf6 {[%clk 0:02:58]} 2. Nc3 {[%clk 0:03:00]}  e6 {[%clk 0:02:58]} 3. Bg5 {[%clk 0:03:01]}  d5 {[%clk 0:02:57]} 4. Nf3 {[%clk 0:03:01]}  Be7 {[%clk 0:02:55]} 5. Bxf6 {[%clk 0:03:01]}  Bxf6 {[%clk 0:02:55]} 6. e4 {[%clk 0:03:02]}  dxe4 {[%clk 0:02:55]} 7. Nxe4 {[%clk 0:03:03]}  O-O {[%clk 0:02:43]} 8. Nxf6+ {[%clk 0:03:03]}  Qxf6 {[%clk 0:02:42]} 9. Bd3 {[%clk 0:03:04]}  Nc6 {[%clk 0:02:32]} 10. Be4 {[%clk 0:03:00]}  Bd7 {[%clk 0:02:23]} 11. O-O {[%clk 0:02:58]}  Rad8 {[%clk 0:02:21]} 12. c3 {[%clk 0:02:58]}  Qf4 {[%clk 0:01:59]} 13. Qc2 {[%clk 0:02:58]}  h6 {[%clk 0:01:51]} 14. Rfe1 {[%clk 0:02:58]}  Qd6 {[%clk 0:01:40]} 15. Rad1 {[%clk 0:02:57]}  b5 {[%clk 0:01:32]} 16. Qe2 {[%clk 0:02:55]}  a6 {[%clk 0:01:31]} 17. Bc2 {[%clk 0:02:48]}  Ne7 {[%clk 0:01:24]} 18. Ne5 {[%clk 0:02:43]}  Nd5 {[%clk 0:01:00]} 19. Qd3 {[%clk 0:02:38]}  f5 {[%clk 0:00:52]} 20. Bb3 {[%clk 0:02:24]}  Rf6 {[%clk 0:00:46]} 21. h4 {[%clk 0:02:21]}  Be8 {[%clk 0:00:35]} 22. Qf3 {[%clk 0:02:04]}  c5 {[%clk 0:00:23]} 23. dxc5 {[%clk 0:01:47]}  Qxc5 {[%clk 0:00:23]} 24. Rd4 {[%clk 0:01:48]} 1-0


[Site "https://www.chess.com"]

[Event "Titled Tuesday Blitz April 05 Early 2022"]
[White "Sonis, Francesco"]
[Black "Perera Alfonso, Rene Humberto"]
[WhiteFideId "895733"]
[BlackFideId "3514722"]
[WhiteElo "2373"]
[BlackElo "2313"]
[Result "1-0"]
[Round "02"]
[TimeControl "180+1"]
[Date "2022.04.05"]
[WhiteClock "0:01:01"]
[BlackClock "0:00:21"]

1. d4 {[%clk 0:03:00]}  d5 {[%clk 0:02:49]} 2. c4 {[%clk 0:03:00]}  c6 {[%clk 0:02:48]} 3. Nf3 {[%clk 0:03:00]}  Nf6 {[%clk 0:02:48]} 4. e3 {[%clk 0:02:57]}  Bg4 {[%clk 0:02:45]} 5. Nc3 {[%clk 0:02:56]}  e6 {[%clk 0:02:43]} 6. h3 {[%clk 0:02:55]}  Bh5 {[%clk 0:02:42]} 7. Qb3 {[%clk 0:02:55]}  Qb6 {[%clk 0:02:36]} 8. Nh4 {[%clk 0:02:54]}  g5 {[%clk 0:02:21]} 9. Nf3 {[%clk 0:02:50]}  h6 {[%clk 0:02:15]} 10. Ne5 {[%clk 0:02:50]}  Nfd7 {[%clk 0:02:13]} 11. Nxd7 {[%clk 0:02:38]}  Nxd7 {[%clk 0:02:14]} 12. Bd2 {[%clk 0:02:35]}  Bg6 {[%clk 0:02:11]} 13. O-O-O {[%clk 0:02:33]}  O-O-O {[%clk 0:02:10]} 14. Qa4 {[%clk 0:02:29]}  Kb8 {[%clk 0:02:08]} 15. c5 {[%clk 0:02:28]}  Qc7 {[%clk 0:01:56]} 16. b4 {[%clk 0:02:28]}  e5 {[%clk 0:01:49]} 17. b5 {[%clk 0:02:23]}  Bg7 {[%clk 0:01:47]} 18. Kb2 {[%clk 0:02:16]}  Rhe8 {[%clk 0:01:41]} 19. Qb4 {[%clk 0:02:08]}  Ka8 {[%clk 0:01:32]} 20. a4 {[%clk 0:02:08]}  f5 {[%clk 0:01:19]} 21. a5 {[%clk 0:02:04]}  exd4 {[%clk 0:01:10]} 22. exd4 {[%clk 0:02:03]}  f4 {[%clk 0:01:09]} 23. b6 {[%clk 0:01:36]}  Qb8 {[%clk 0:01:08]} 24. bxa7 {[%clk 0:01:33]}  Qxa7 {[%clk 0:01:09]} 25. Na4 {[%clk 0:01:33]}  Re4 {[%clk 0:01:04]} 26. Bc3 {[%clk 0:01:32]}  Kb8 {[%clk 0:00:40]} 27. Nb6 {[%clk 0:01:25]}  Bf5 {[%clk 0:00:33]} 28. Bd3 {[%clk 0:01:22]}  Rde8 {[%clk 0:00:28]} 29. Bxe4 {[%clk 0:01:18]}  Rxe4 {[%clk 0:00:26]} 30. Rhe1 {[%clk 0:01:17]}  Nf8 {[%clk 0:00:24]} 31. f3 {[%clk 0:01:16]}  Rxe1 {[%clk 0:00:23]} 32. Rxe1 {[%clk 0:01:17]}  Ne6 {[%clk 0:00:24]} 33. Nd7+ {[%clk 0:01:01]}  Kc7 {[%clk 0:00:24]} 34. Ne5 {[%clk 0:01:02]}  Qa6 {[%clk 0:00:22]} 35. Qb6+ {[%clk 0:01:02]}  Qxb6+ {[%clk 0:00:22]} 36. axb6+ {[%clk 0:01:00]}  Kd8 {[%clk 0:00:23]} 37. Nf7+ {[%clk 0:01:00]}  Ke7 {[%clk 0:00:23]} 38. Nd6 {[%clk 0:01:01]}  Kd7 {[%clk 0:00:21]} 39. Nxf5 {[%clk 0:01:01]} 1-0


[Site "https://www.chess.com"]

[Event "Titled Tuesday Blitz April 05 Early 2022"]
[White "Srebrnic, Marko"]
[Black "Papasimakopoulos, Alexandros"]
[WhiteFideId "14603616"]
[BlackFideId "4244125"]
[WhiteElo "2340"]
[BlackElo "2340"]
[Result "0-1"]
[Round "02"]
[TimeControl "180+1"]
[Date "2022.04.05"]
[WhiteClock "0:00:02"]
[BlackClock "0:00:04"]

1. e4 {[%clk 0:02:48]}  e6 {[%clk 0:02:59]} 2. d4 {[%clk 0:02:48]}  d5 {[%clk 0:03:00]} 3. Nc3 {[%clk 0:02:48]}  Bb4 {[%clk 0:02:59]} 4. e5 {[%clk 0:02:48]}  b6 {[%clk 0:02:59]} 5. a3 {[%clk 0:02:47]}  Bf8 {[%clk 0:02:59]} 6. f4 {[%clk 0:02:47]}  Nh6 {[%clk 0:02:59]} 7. Nf3 {[%clk 0:02:47]}  Be7 {[%clk 0:02:57]} 8. Bd3 {[%clk 0:02:47]}  Ba6 {[%clk 0:02:57]} 9. O-O {[%clk 0:02:46]}  Bxd3 {[%clk 0:02:57]} 10. cxd3 {[%clk 0:02:46]}  c5 {[%clk 0:02:56]} 11. dxc5 {[%clk 0:02:46]}  bxc5 {[%clk 0:02:57]} 12. b4 {[%clk 0:02:41]}  cxb4 {[%clk 0:02:45]} 13. axb4 {[%clk 0:02:40]}  O-O {[%clk 0:02:46]} 14. b5 {[%clk 0:02:22]}  Bb4 {[%clk 0:02:43]} 15. Na4 {[%clk 0:02:13]}  Qa5 {[%clk 0:02:19]} 16. Rb1 {[%clk 0:01:59]}  Qxb5 {[%clk 0:02:06]} 17. Nd4 {[%clk 0:01:55]}  Qb7 {[%clk 0:02:04]} 18. f5 {[%clk 0:01:42]}  Nxf5 {[%clk 0:01:59]} 19. Rxf5 {[%clk 0:01:41]}  exf5 {[%clk 0:02:00]} 20. Nxf5 {[%clk 0:01:41]}  Bc5+ {[%clk 0:01:50]} 21. Nxc5 {[%clk 0:00:44]}  Qxb1 {[%clk 0:01:48]} 22. Nxg7 {[%clk 0:00:45]}  Nc6 {[%clk 0:01:12]} 23. Nd7 {[%clk 0:00:38]}  Nxe5 {[%clk 0:00:56]} 24. Nxe5 {[%clk 0:00:22]}  Rac8 {[%clk 0:00:36]} 25. Qg4 {[%clk 0:00:09]}  Qxc1+ {[%clk 0:00:18]} 26. Kf2 {[%clk 0:00:10]}  Rc2+ {[%clk 0:00:19]} 27. Kg3 {[%clk 0:00:10]}  Qe1+ {[%clk 0:00:12]} 28. Kh3 {[%clk 0:00:10]}  Qe3+ {[%clk 0:00:08]} 29. Nf3 {[%clk 0:00:09]}  Qh6+ {[%clk 0:00:08]} 30. Nh5+ {[%clk 0:00:10]}  Kh8 {[%clk 0:00:09]} 31. Qf5 {[%clk 0:00:09]}  Qg6 {[%clk 0:00:07]} 32. Qe5+ {[%clk 0:00:09]}  f6 {[%clk 0:00:08]} 33. Qe7 {[%clk 0:00:05]}  Qxg2+ {[%clk 0:00:06]} 34. Kh4 {[%clk 0:00:06]}  Rcc8 {[%clk 0:00:05]} 35. Qe6 {[%clk 0:00:04]}  Rce8 {[%clk 0:00:04]} 36. Qd7 {[%clk 0:00:04]}  Qg6 {[%clk 0:00:04]} 37. Nf4 {[%clk 0:00:04]}  Qh6+ {[%clk 0:00:04]} 38. Nh5 {[%clk 0:00:05]}  Rg8 {[%clk 0:00:04]} 39. h3 {[%clk 0:00:05]}  Qg6 {[%clk 0:00:04]} 40. Nh2 {[%clk 0:00:02]}  Qg5# {[%clk 0:00:04]} 0-1


[Site "https://www.chess.com"]

[Event "Titled Tuesday Blitz April 05 Early 2022"]
[White "Sychev, Klementy"]
[Black "Karas, Marek"]
[WhiteFideId "4114060"]
[BlackFideId "14928558"]
[WhiteElo "2564"]
[BlackElo "2271"]
[Result "0-1"]
[Round "02"]
[TimeControl "180+1"]
[Date "2022.04.05"]
[WhiteClock "0:00:11"]
[BlackClock "0:00:32"]

1. d4 {[%clk 0:03:00]}  Nf6 {[%clk 0:03:00]} 2. Nc3 {[%clk 0:02:59]}  e6 {[%clk 0:02:59]} 3. e4 {[%clk 0:02:59]}  d5 {[%clk 0:02:59]} 4. e5 {[%clk 0:02:58]}  Nfd7 {[%clk 0:03:00]} 5. f4 {[%clk 0:02:59]}  c5 {[%clk 0:03:01]} 6. Nf3 {[%clk 0:03:00]}  Nc6 {[%clk 0:03:01]} 7. Be3 {[%clk 0:03:00]}  Be7 {[%clk 0:03:00]} 8. Qd2 {[%clk 0:02:58]}  O-O {[%clk 0:03:00]} 9. dxc5 {[%clk 0:02:56]}  Qa5 {[%clk 0:03:01]} 10. a3 {[%clk 0:02:54]}  Bxc5 {[%clk 0:02:50]} 11. Bxc5 {[%clk 0:02:28]}  Nxc5 {[%clk 0:02:50]} 12. O-O-O {[%clk 0:02:29]}  b6 {[%clk 0:02:37]} 13. Nd4 {[%clk 0:02:25]}  Nxd4 {[%clk 0:02:16]} 14. Qxd4 {[%clk 0:02:24]}  Ba6 {[%clk 0:02:13]} 15. f5 {[%clk 0:02:22]}  Bxf1 {[%clk 0:02:05]} 16. Rhxf1 {[%clk 0:02:22]}  exf5 {[%clk 0:02:05]} 17. Nxd5 {[%clk 0:02:18]}  Ne6 {[%clk 0:02:00]} 18. Qh4 {[%clk 0:02:07]}  Rfd8 {[%clk 0:01:46]} 19. Ne7+ {[%clk 0:02:07]}  Kh8 {[%clk 0:01:46]} 20. Nc6 {[%clk 0:01:41]}  Rxd1+ {[%clk 0:01:43]} 21. Rxd1 {[%clk 0:01:42]}  Qc5 {[%clk 0:01:39]} 22. Nd8 {[%clk 0:01:31]}  Kg8 {[%clk 0:01:28]} 23. Kb1 {[%clk 0:00:51]}  Qxe5 {[%clk 0:01:22]} 24. Qe7 {[%clk 0:00:41]}  Qf6 {[%clk 0:01:13]} 25. Qe8+ {[%clk 0:00:32]}  Nf8 {[%clk 0:01:13]} 26. Rd7 {[%clk 0:00:12]}  h6 {[%clk 0:00:44]} 27. h4 {[%clk 0:00:11]}  Rc8 {[%clk 0:00:34]} 28. Qxf7+ {[%clk 0:00:10]}  Qxf7 {[%clk 0:00:33]} 29. Nxf7 {[%clk 0:00:11]}  Nxd7 {[%clk 0:00:32]} 0-1


[Site "https://www.chess.com"]

[Event "Titled Tuesday Blitz April 05 Early 2022"]
[White "Tanenbaum, Zachary"]
[Black "Rodchenkov, Vitaly"]
[WhiteFideId "2060850"]
[BlackFideId "4152964"]
[WhiteElo "2706"]
[BlackElo "2322"]
[Result "1-0"]
[Round "02"]
[TimeControl "180+1"]
[Date "2022.04.05"]
[WhiteClock "0:02:14"]
[BlackClock "0:01:29"]

1. e4 {[%clk 0:02:59]}  c6 {[%clk 0:03:00]} 2. d4 {[%clk 0:03:00]}  d5 {[%clk 0:03:00]} 3. exd5 {[%clk 0:03:00]}  cxd5 {[%clk 0:03:01]} 4. Bd3 {[%clk 0:03:01]}  Nc6 {[%clk 0:03:00]} 5. c3 {[%clk 0:03:01]}  g6 {[%clk 0:02:59]} 6. Bf4 {[%clk 0:03:00]}  Nf6 {[%clk 0:03:00]} 7. Nf3 {[%clk 0:03:00]}  Bf5 {[%clk 0:03:00]} 8. Bxf5 {[%clk 0:03:00]}  gxf5 {[%clk 0:03:01]} 9. O-O {[%clk 0:03:00]}  e6 {[%clk 0:03:01]} 10. Re1 {[%clk 0:02:58]}  Be7 {[%clk 0:03:00]} 11. Nbd2 {[%clk 0:02:58]}  Rg8 {[%clk 0:03:00]} 12. Ne5 {[%clk 0:02:55]}  Ne4 {[%clk 0:02:59]} 13. Nxe4 {[%clk 0:02:26]}  fxe4 {[%clk 0:02:54]} 14. f3 {[%clk 0:02:24]}  exf3 {[%clk 0:02:52]} 15. Qxf3 {[%clk 0:02:25]}  Nxe5 {[%clk 0:02:49]} 16. Bxe5 {[%clk 0:02:21]}  Bh4 {[%clk 0:02:30]} 17. Rf1 {[%clk 0:02:18]}  Qd7 {[%clk 0:02:21]} 18. Qh5 {[%clk 0:02:17]}  Bg5 {[%clk 0:02:15]} 19. Qxh7 {[%clk 0:02:16]}  Be3+ {[%clk 0:02:15]} 20. Kh1 {[%clk 0:02:16]}  O-O-O {[%clk 0:02:15]} 21. Rxf7 {[%clk 0:02:16]}  Qc6 {[%clk 0:01:42]} 22. Rc7+ {[%clk 0:02:15]}  Kb8 {[%clk 0:01:43]} 23. Rxc6+ {[%clk 0:02:15]}  Ka8 {[%clk 0:01:43]} 24. Rc7 {[%clk 0:02:13]}  Rb8 {[%clk 0:01:32]} 25. Rxb7 {[%clk 0:02:13]}  Rxb7 {[%clk 0:01:29]} 26. Qxg8+ {[%clk 0:02:13]}  Rb8 {[%clk 0:01:29]} 27. Qxb8# {[%clk 0:02:14]} 1-0


[Site "https://www.chess.com"]

[Event "Titled Tuesday Blitz April 05 Early 2022"]
[White "Terletsky, Oleg"]
[Black "Pap, Gyula"]
[WhiteFideId "14116774"]
[BlackFideId "725323"]
[WhiteElo "2404"]
[BlackElo "2730"]
[Result "0-1"]
[Round "02"]
[TimeControl "180+1"]
[Date "2022.04.05"]
[WhiteClock "0:00:04"]
[BlackClock "0:00:40"]

1. e4 {[%clk 0:03:00]}  c6 {[%clk 0:03:00]} 2. d4 {[%clk 0:03:00]}  d5 {[%clk 0:03:00]} 3. Nc3 {[%clk 0:03:01]}  dxe4 {[%clk 0:03:00]} 4. Nxe4 {[%clk 0:03:02]}  Nf6 {[%clk 0:03:00]} 5. Nxf6+ {[%clk 0:03:02]}  exf6 {[%clk 0:03:01]} 6. c3 {[%clk 0:03:02]}  Bd6 {[%clk 0:03:01]} 7. Bd3 {[%clk 0:03:03]}  O-O {[%clk 0:03:01]} 8. Qc2 {[%clk 0:03:03]}  Re8+ {[%clk 0:03:02]} 9. Ne2 {[%clk 0:03:04]}  h5 {[%clk 0:03:02]} 10. Be3 {[%clk 0:03:04]}  Nd7 {[%clk 0:03:00]} 11. O-O-O {[%clk 0:03:04]}  Nf8 {[%clk 0:03:01]} 12. Kb1 {[%clk 0:03:00]}  Be6 {[%clk 0:02:54]} 13. Ng3 {[%clk 0:03:00]}  g6 {[%clk 0:02:52]} 14. Ne4 {[%clk 0:02:45]}  Be7 {[%clk 0:02:43]} 15. c4 {[%clk 0:02:44]}  Rc8 {[%clk 0:02:39]} 16. Nc5 {[%clk 0:02:38]}  Bg4 {[%clk 0:01:54]} 17. f3 {[%clk 0:01:49]}  Bxc5 {[%clk 0:01:53]} 18. dxc5 {[%clk 0:01:49]}  Rxe3 {[%clk 0:01:52]} 19. fxg4 {[%clk 0:01:49]}  hxg4 {[%clk 0:01:25]} 20. Bxg6 {[%clk 0:01:44]}  Qa5 {[%clk 0:01:23]} 21. Bf5 {[%clk 0:01:28]}  Rce8 {[%clk 0:01:23]} 22. Bxg4 {[%clk 0:01:21]}  Qxc5 {[%clk 0:01:23]} 23. Rhf1 {[%clk 0:01:07]}  R8e4 {[%clk 0:01:21]} 24. Bf5 {[%clk 0:00:41]}  Rxc4 {[%clk 0:01:04]} 25. Qf2 {[%clk 0:00:33]}  Qe5 {[%clk 0:01:01]} 26. Rfe1 {[%clk 0:00:27]}  Rxe1 {[%clk 0:00:51]} 27. Rxe1 {[%clk 0:00:28]}  Qf4 {[%clk 0:00:47]} 28. Qxf4 {[%clk 0:00:23]}  Rxf4 {[%clk 0:00:48]} 29. g4 {[%clk 0:00:24]}  Ne6 {[%clk 0:00:42]} 30. h4 {[%clk 0:00:07]}  Nd4 {[%clk 0:00:41]} 31. Re7 {[%clk 0:00:04]}  Rf1+ {[%clk 0:00:40]} 0-1


[Site "https://www.chess.com"]

[Event "Titled Tuesday Blitz April 05 Early 2022"]
[White "Tiarks, Jann-Christian"]
[Black "Martin Carmona, Gaston Manuel"]
[WhiteFideId "12951595"]
[BlackFideId "22284567"]
[WhiteElo "2176"]
[BlackElo "2146"]
[Result "0-1"]
[Round "02"]
[TimeControl "180+1"]
[Date "2022.04.05"]
[WhiteClock "0:00:01"]
[BlackClock "0:00:03"]

1. e4 {[%clk 0:02:56]}  e6 {[%clk 0:03:00]} 2. d4 {[%clk 0:02:53]}  d5 {[%clk 0:03:01]} 3. e5 {[%clk 0:02:51]}  c5 {[%clk 0:03:01]} 4. c3 {[%clk 0:02:51]}  Nc6 {[%clk 0:03:02]} 5. Bd3 {[%clk 0:02:50]}  Qb6 {[%clk 0:03:02]} 6. Ne2 {[%clk 0:02:49]}  Bd7 {[%clk 0:02:56]} 7. O-O {[%clk 0:02:48]}  cxd4 {[%clk 0:02:54]} 8. cxd4 {[%clk 0:02:48]}  Nxd4 {[%clk 0:02:55]} 9. Nxd4 {[%clk 0:02:47]}  Qxd4 {[%clk 0:02:56]} 10. Nc3 {[%clk 0:02:44]}  a6 {[%clk 0:02:00]} 11. Be3 {[%clk 0:02:16]}  Qxe5 {[%clk 0:01:59]} 12. Re1 {[%clk 0:02:16]}  Qd6 {[%clk 0:01:47]} 13. Na4 {[%clk 0:01:52]}  Nf6 {[%clk 0:01:46]} 14. Nb6 {[%clk 0:01:48]}  Rd8 {[%clk 0:01:46]} 15. Rc1 {[%clk 0:01:41]}  Qb8 {[%clk 0:01:25]} 16. Bd4 {[%clk 0:01:13]}  Bc6 {[%clk 0:01:12]} 17. Be5 {[%clk 0:01:08]}  Bd6 {[%clk 0:01:10]} 18. Bxf6 {[%clk 0:01:00]}  gxf6 {[%clk 0:01:11]} 19. g3 {[%clk 0:01:00]}  Kf8 {[%clk 0:00:58]} 20. Bxa6 {[%clk 0:00:47]}  Qa7 {[%clk 0:00:57]} 21. Qd4 {[%clk 0:00:34]}  Be7 {[%clk 0:00:34]} 22. Nd7+ {[%clk 0:00:33]}  Bxd7 {[%clk 0:00:29]} 23. Qxa7 {[%clk 0:00:34]}  bxa6 {[%clk 0:00:30]} 24. Rc7 {[%clk 0:00:29]}  Ke8 {[%clk 0:00:28]} 25. Qxa6 {[%clk 0:00:27]}  Rg8 {[%clk 0:00:23]} 26. Rec1 {[%clk 0:00:24]}  Rg4 {[%clk 0:00:23]} 27. Ra7 {[%clk 0:00:23]}  Ra4 {[%clk 0:00:21]} 28. Qb6 {[%clk 0:00:13]}  Rb4 {[%clk 0:00:20]} 29. Qc7 {[%clk 0:00:12]}  Rxb2 {[%clk 0:00:19]} 30. a4 {[%clk 0:00:12]}  Rbb8 {[%clk 0:00:13]} 31. Qa5 {[%clk 0:00:09]}  Bb4 {[%clk 0:00:11]} 32. Qa6 {[%clk 0:00:06]}  Be7 {[%clk 0:00:09]} 33. Rcc7 {[%clk 0:00:05]}  Rbc8 {[%clk 0:00:07]} 34. a5 {[%clk 0:00:05]}  Rb8 {[%clk 0:00:06]} 35. Rab7 {[%clk 0:00:02]}  Ra8 {[%clk 0:00:06]} 36. Qb6 {[%clk 0:00:01]}  e5 {[%clk 0:00:05]} 37. a6 {[%clk 0:00:01]}  Rac8 {[%clk 0:00:03]} 38. a7 {[%clk 0:00:01]}  Ra8 {[%clk 0:00:03]} 0-1


[Site "https://www.chess.com"]